Workbook

Sheet Risk
D3: Crop | G3: Production | I3: Index | J3: Low | N3: Med | R3: High
D4: Planting Date | E4: 2021-09-30 | H4: Aflatoxin | I4: =AFLTXN_RiskIndex -> 460 | J4: 460 | K4: 460 | L4: 460 | M4: 460 | N4: 460 | O4: 460 | P4: 460 | Q4: 460 | R4: 460 | S4: 460 | T4: 460 | U4: 460
D5: Plants per 1m of Row | E5: 10 plants (10 cm spacing, optimum) | H5: Yield Reduction | I5: =YLD_RiskIndex -> 680 | J5: 680 | K5: 680 | L5: 680 | M5: 680 | N5: 680 | O5: 680 | P5: 680 | Q5: 680 | R5: 680 | S5: 680 | T5: 680 | U5: 680
D6: Seed Inoculant | E6: Yes
D7: Variety | E7: Yenyawoso (Span-GRDR) | G7: Red Dots - Change practices to eliminate. Yellow Dots - Consider adjusting practices to reduce risk. Green Dots - Risk is acceptable for selected practices.
D8: Field
D9: Calciprill Application | E9: No
D10: Crop Rotation | E10: Groundnut : Groundnut : Groundnut
D11: Fertilizer | E11: None
D12: Soil Fertility | E12: Low
D13: Soil pH | E13: 4.6
D14: Tillage | E14: Flat Beds (Conventional)
D15: Harvest
D16: Digging Timimg | E16: Optimum
D17: Drying | E17: Tarpulin
D18: Pest Management
D19: Aphid Spray | E19: Yes
D20: Bird Protection | E20: No
D21: Fungicides | E21: 2 Sprays
D22: Rodent Protection | E22: Yes
D23: Weed Control | E23: 2 hand weedings during season
D24: Storage
D25: Groundnut Moisture | E25: Less than 10%
D26: Method | E26: Traditional
D27: Temperature | E27: Lower than 28 °C

Sheet Crop (hidden)
A1: Crop | B1: Groundnut
A3: Planting Season | B3: Date | C3: Month | D3: Day of Month | E3: Day of Year
A4: Start | B4: 2021-08-15 | C4: =MONTH(B4) -> 8 | D4: =DAY(B4) -> 15 | E4: =B4-DATE(YEAR(B4),1,1)+1 -> 227
A5: End | B5: 2021-09-30 | C5: =MONTH(B5) -> 9 | D5: =DAY(B5) -> 30 | E5: =B5-DATE(YEAR(B5),1,1)+1 -> 273
A7: Title | B7: Groundnut Risk Tool - Southern Ghana
A8: Subtitle | B8: (MINOR SEASON)
A9: Credit Lines | B9: J.A. Nboyine, R. Oteng-Frimpong and A. Seidu
B10: CSIR - SARI
B11: M.B. Mochiah and S. Arthur
B12: CSIR - CRI
B13: R. Akromah
B14: KNUST
B15: D. Jordan, R. Brandenburg and G.S. Buol
B16: North Carolina State University, Raleigh NC USA

Sheet Log_TPL (hidden)
A1: Field and Production Information
S2: Input Selection Lists
D3: Crop | E3: =Crop -> Groundnut | S3: Tillage_Pracs | T3: Land_Plaster_Meth | U3: Land_Plaster_Type | V3: Digging_Eq | W3: Combine | X3: Moisture_Status | Y3: Control_Rating
D4: Field Area (ha)
S5: Bed | T5: Banded | U5: Bagged | V5: 2 Row Digger | W5: 2 Row Pull Type Combine | X5: Dry | Y5: No Control (<5%)
D6: Soil | E6: Mapped Series | F6: % of Field | S6: Chisel | T6: Broadcast | U6: Bulk | V6: 4 Row Digger | W6: 4 Row Pull Type Combine | X6: Adequate | Y6: Poor (5% to 20%)
S7: Cultivate | T7: Other | U7: Granular | V7: 6 Row Digger | W7: 6 Row Pull Type Combine | X7: Wet | Y7: Low (20% to 50%)
S8: Disk | U8: Other | V8: Other | W8: 6 Row Self-Propelled Combine | Y8: Moderate (50% to 80%)
S9: Moldboard Plow | W9: 8 Row Self-Propelled Combine | Y9: High (80% to 90%)
S10: No Till | W10: Other | Y10: Excellent (90% to 100%)
S11: Other
S12: Rip
D13: Tillage Practice | E13: Date | F13: Equipment | S13: Rip and Bed
S14: Strip Till
D18: Lime Applications | E18: Date | F18: Rate (kg/ha)
D19: Current Year
D20: Last Year
D22: Seed Inoculation | E22: Date | F22: Inoculant
D25: Fertilizer | E25: Date | F25: N | G25: P2O5 | H25: K2O | I25: B | J25: Cu | K25: Fe | L25: Mn | M25: Mo | N25: S | O25: Zn
F26: kg/ha
D32: Land Plaster | E32: Date | F32: Trade Name | G32: Type | H32: Method | I32: Rate (kg/ha)
D35: Herbicides | E35: Date | F35: Weeds | G35: Weed Size | H35: Trade Name | I35: Rate | J35: Trade Name | K35: Rate | L35: Trade Name | M35: Rate | N35: Trade Name | O35: Rate | P35: Evaluation Date | Q35: Control Rating
D36: Burndown
D37: Preplant
D38: Preemergence
D39: At Cracking
D40: First Postemergence
D41: Second Postemergence
D42: Third Postemergence
D44: Leaf Spot Program | E44: Date | F44: Severity | G44: Trade Name | H44: Rate | I44: Trade Name | J44: Rate | K44: Trade Name | L44: Rate | M44: Evaluation Date | N44: Control Rating
D58: Pest Treaments | E58: Date | F58: Severity | G58: Trade Name | H58: Rate | I58: Trade Name | J58: Rate | K58: Evaluation Date | L58: Control Rating
D59: Sclerotina Blight
D61: CBR
D63: Southern Corn Rootworm
D65: Spider Mites
D68: Insecticide Treaments | E68: Date | F68: Pest | G68: Severity | H68: Trade Name | I68: Rate | J68: Trade Name | K68: Rate | L68: Evaluation Date | M68: Control Rating
D69: In-furrow
D70: Foliar
D77: Development Dates | E77: Date
D78: Emergence
D79: First Flower
D80: First Peg
D81: Last Flower
D83: Development Moisture Status
D84: Planting to Emergence
D85: Emergence to Flowering
D86: Flowering to Pod Formation
D87: Pod Formation to Harvest
D89: Weeds at Harvest
D98: Pod Blasting Data | E98: Date | F98: White | G98: Yellow | H98: Orange | I98: Brown | J98: Black | K98: White | L98: Yellow | M98: Orange | N98: Brown | O98: Black | P98: Brown/Black
F99: Pod Count | K99: Percentage(%)
K100: =IF(SUM($F100:$J100)=0,NA(),F100/(SUM($F100:$J100))) ->  | L100: =IF(SUM($F100:$J100)=0,NA(),G100/(SUM($F100:$J100))) ->  | P100: =N100+O100 -> 
P101: =N101+O101 -> 
D105: Digging | E105: Date | F105: Equipment
D108: Harvest | E108: Date | F108: Equipment
D111: Yield Goal (kg/ha)
D112: Yield (kg/ha)
D113: Selling Price (₵/kg)
D115: Grading Results | E115: Grams (gr) | F115: Percentage (%)
D116: Foreign Material Sample
D117: Foreign Material | F117: =IFERROR(E117/E116,0) -> 0
D118: LSK | F118: =IFERROR(E118/E116,0) -> 0
D119: Moisture
D121: Cleaned Sample
D122: Fancy | F122: =IFERROR(E122/E121,0) -> 0
D123: Kernels Riding ELK Screen
D124: Total ELK Damage
D125: Net ELK | E125: =E123-E124 -> 0 | F125: =IFERROR(E125/E121,0) -> 0
D126: Kernels Riding Prescribed Screen
D128: Total KRS
D129: Damage KRS
D130: SMKRS | E130: =E128-E129 -> 0 | F130: =IFERROR(E130/E121,0) -> 0
D131: Sound Splits | F131: =IFERROR(E131/E121,0) -> 0
D132: Total SMK | F132: =F130+F131 -> 0
D133: Other Kernels | F133: =IFERROR(E133/E121,0) -> 0
D134: Damage Splits
D135: Total Damage | F135: =IFERROR(E135/E121,0) -> 0
D136: Total Kernels | F136: =F132+F133+F134+F135 -> 0
D137: Hulls | F137: =IFERROR(E137/E121,0) -> 0
D138: Total Kernels & Halls | F138: =F136+F137 -> 0
D139: Freeze Damage | F139: =IFERROR(E139/E121,0) -> 0
D140: Concealed RMD | F140: =IFERROR(E140/E121,0) -> 0
D141: Remarks
D144: Rainfall/Irrigation | E144: Date | F144: Amount (mm) | G144: Month | I144: Month | J144: Amount (mm)
G145: =IF(ISBLANK(E145),"",TEXT(E145,"mmm")) ->  | I145: Jan | J145: =SUMIF(G$145:G$244,"=" & I145,F$145:F$244) -> 0
G146: =IF(ISBLANK(E146),"",TEXT(E146,"mmm")) ->  | I146: Feb | J146: =SUMIF(G$145:G$244,"=" & I146,F$145:F$244) -> 0
I147: Mar | J147: 0
I148: Apr | J148: 0
I149: May | J149: 0
I150: Jun | J150: 0
I151: Jul | J151: 0
I152: Aug | J152: 0
I153: Sep | J153: 0
I154: Oct | J154: 0
I155: Nov | J155: 0
I156: Dec | J156: 0
G210: =IF(ISBLANK(E210),"",TEXT(E210,"mmm")) -> 

Sheet Pests (hidden)
A1: PestType | B1: Pest | C1: PestID
A2: Production | B2: Aflatoxin | C2: AFLTXN
A3: Production | B3: Yield Reduction | C3: YLD

Sheet Lists (hidden)
A1: Category | B1: Category_Pest | C1: CategoryID | D1: Category_List | E1: Category_List_Type | F1: Months | G1: Land_Area_Units | H1: Crop\Variety | I1: Crop\Plants_per_1m_of_Row | J1: Crop\Seed_Inoculant | K1: Field\Crop_Rotation | L1: Field\Fertilizer | M1: Field\Soil_pH | N1: Field\Tillage | O1: Harvest\Digging_Timimg | P1: Harvest\Drying | Q1: Crop\Planting_Date | R1: Storage\Method | S1: Pest_Management\Aphid_Spray | T1: Pest_Management\Bird_Protection | U1: Pest_Management\Fungicides | V1: Pest_Management\Rodent_Protection | W1: Pest_Management\Weed_Control | X1: Storage\Groundnut_Moisture | Y1: Storage\Temperature | Z1: Field\Soil_Fertility | AA1: Field\Calciprill_Application
A2: Crop\Planting_Date | C2: Crop\Planting_Date | D2: Crop\Planting_Date | E2: Date | F2: (01) January | G2: ac | H2: Chinese (Span) | I2: 01|5 plants (20 cm spacing) | J2: No | K2: Groundnut : Groundnut : Groundnut | L2: 01|None | M2: 4.4 or lower | N2: Flat Beds (Conventional) | O2: 01|15 Days Early | P2: Cemented floor | Q2: 001 to 243 | R2: Sealed | S2: No | T2: No | U2: 01|None | V2: No | W2: 01|1 hand weeding during season | X2: 01|Less than 10% | Y2: 01|Lower than 28 °C | Z2: 01|Low | AA2: No
A3: Crop\Plants_per_1m_of_Row | C3: Crop\Plants_per_1m_of_Row | D3: Crop\Plants_per_1m_of_Row | E3: Single | F3: (02) February | G3: ha | H3: Konkoma (Span) | I3: 02|7 plants (15 cm spacing) | J3: Yes | K3: Groundnut : Maize : Groundnut | L3: 02|50 kg/ha (Yara Legume) | M3: 4.5 to 5.0 | N3: Plough and harrow (Improved) | O3: 02|7 Days Early | P3: Ground | Q3: 244 to 257 | R3: Traditional | S3: Yes | T3: Yes | U3: 02|1 Spray | V3: Yes | W3: 02|2 hand weedings during season | X3: 02|10 to 15% | Y3: 02|28 to 32 °C | Z3: 02|Moderate | AA3: Yes
A4: Crop\Seed_Inoculant | C4: Crop\Seed_Inoculant | D4: Crop\Seed_Inoculant | E4: Single | F4: (03) March | H4: Yenyawoso (Span-GRDR) | I4: 03|10 plants (10 cm spacing, optimum) | K4: Maize : Groundnut : Groundnut | L4: 03|100 kg/ha (Yara Legume) | M4: 5.1 to 5.5 | O4: 03|Optimum | P4: Tarpulin | Q4: 258 to 365 | U4: 03|2 Sprays | W4: 03|Pre herbicides followed by 1 hand weeding | X4: 03|Greater than 15% | Y4: 03|Higher than 32 °C | Z4: 03|High
A5: Crop\Variety | C5: Crop\Variety | D5: Crop\Variety | E5: Single | F5: (04) April | K5: Maize : Groundnut : Maize | L5: 04|150 kg/ha (Yara Legume) | M5: 5.6 to 6.9 | O5: 04|7 Days Late | U5: 04|3 Sprays | W5: 04|Post herbicides followed by 1 hand weeding
A6: Field\Calciprill_Application | C6: Field\Calciprill_Application | D6: Field\Calciprill_Application | E6: Single | F6: (05) May | K6: Maize : Maize : Groundnut | M6: 7.0 or higher | O6: 05|15 Days Late
A7: Field\Crop_Rotation | C7: Field\Crop_Rotation | D7: Field\Crop_Rotation | E7: Single | F7: (06) June
A8: Field\Fertilizer | C8: Field\Fertilizer | D8: Field\Fertilizer | E8: Single | F8: (07) July
A9: Field\Soil_Fertility | C9: Field\Soil_Fertility | D9: Field\Soil_Fertility | E9: Single | F9: (08) August
A10: Field\Soil_pH | C10: Field\Soil_pH | D10: Field\Soil_pH | E10: pH | F10: (09) September
A11: Field\Tillage | C11: Field\Tillage | D11: Field\Tillage | E11: Single | F11: (10) October
A12: Harvest\Digging_Timimg | C12: Harvest\Digging_Timimg | D12: Harvest\Digging_Timimg | E12: Single | F12: (11) November
A13: Harvest\Drying | C13: Harvest\Drying | D13: Harvest\Drying | E13: Single | F13: (12) December
A14: Pest_Management\Aphid_Spray | C14: Pest_Management\Aphid_Spray | D14: Pest_Management\Aphid_Spray | E14: Single
A15: Pest_Management\Bird_Protection | C15: Pest_Management\Bird_Protection | D15: Pest_Management\Bird_Protection | E15: Single
A16: Pest_Management\Fungicides | C16: Pest_Management\Fungicides | D16: Pest_Management\Fungicides | E16: Single
A17: Pest_Management\Rodent_Protection | C17: Pest_Management\Rodent_Protection | D17: Pest_Management\Rodent_Protection | E17: Single
A18: Pest_Management\Weed_Control | C18: Pest_Management\Weed_Control | D18: Pest_Management\Weed_Control | E18: Single
A19: Storage\Groundnut_Moisture | C19: Storage\Groundnut_Moisture | D19: Storage\Groundnut_Moisture | E19: Single
A20: Storage\Method | C20: Storage\Method | D20: Storage\Method | E20: Single
A21: Storage\Temperature | C21: Storage\Temperature | D21: Storage\Temperature | E21: Single

Sheet Costs (hidden)
A1: Land Area Units | B1: ha | H1: =Cost_Header -> Cost (₵/ha) | K1: =CONCATENATE("Person Hours (hrs/",sel_Land_Area_Units,")") -> Person Hours (hrs/ha)
A2: Category | B2: Item | C2: =CONCATENATE("Cost (₵/",sel_Land_Area_Units,")") -> Cost (₵/ha) | D2: Multiplier | E2: =CONCATENATE("Person Hours (hrs/",sel_Land_Area_Units,")") -> Person Hours (hrs/ha) | G2: Category | H2: Max | I2: Min | J2: Sel | K2: Max | L2: Min | M2: Sel | N2: Selection
A3: Base_Cost | C3: 1000 | G3: Base_Cost | H3: =Cost_Base -> 1000 | I3: =Cost_Base -> 1000 | J3: =Cost_Base -> 1000 | K3: =PersonHours_Base -> 0 | L3: =PersonHours_Base -> 0 | M3: =PersonHours_Base -> 0
A4: Crop\Plants_per_1m_of_Row | B4: 5 plants (20 cm spacing) | D4: 0.5 | G4: Crop\Seed_Inoculant | Crop\Plants_per_1m_of_Row | H4: =calcCostMax(G4,Category) -> 90 | I4: =calcCostMin(G4) -> 0 | J4: =calcCost(G4,N4,Category) -> 90 | K4: =calcPersonHrsMax(G4,Category) -> 0 | L4: =calcPersonHrsMin(G4) -> 0 | M4: =calcPersonHrs(G4,N4,Category) -> 0 | N4: =CONCATENATE(IF(ISBLANK(sel_Crop\Seed_Inoculant),"",sel_Crop\Seed_Inoculant)," | ",IF(ISBLANK(sel_Crop\Plants_per_1m_of_Row),"",sel_Crop\Plants_per_1m_of_Row)) -> Yes | 10 plants (10 cm spacing, optimum)
A5: Crop\Plants_per_1m_of_Row | B5: 7 plants (15 cm spacing) | D5: 0.7 | G5: Crop\Variety | Crop\Plants_per_1m_of_Row | H5: 635 | I5: 317.5 | J5: 635 | K5: 0 | L5: 0 | M5: 0 | N5: =CONCATENATE(IF(ISBLANK(sel_Crop\Variety),"",sel_Crop\Variety)," | ",IF(ISBLANK(sel_Crop\Plants_per_1m_of_Row),"",sel_Crop\Plants_per_1m_of_Row)) -> Yenyawoso (Span-GRDR) | 10 plants (10 cm spacing, optimum)
A6: Crop\Plants_per_1m_of_Row | B6: 10 plants (10 cm spacing, optimum) | D6: 1 | G6: Field\Calciprill_Application | H6: 625 | I6: 0 | J6: 0 | K6: 0 | L6: 0 | M6: 0 | N6: =CONCATENATE(IF(ISBLANK(sel_Field\Calciprill_Application),"",sel_Field\Calciprill_Application)) -> No
A7: Crop\Seed_Inoculant | B7: No | C7: 0 | G7: Field\Fertilizer | H7: 750 | I7: 0 | J7: 0 | K7: 0 | L7: 0 | M7: 0 | N7: =CONCATENATE(IF(ISBLANK(sel_Field\Fertilizer),"",sel_Field\Fertilizer)) -> None
A8: Crop\Seed_Inoculant | B8: Yes | C8: 90 | G8: Field\Soil_pH | H8: 0 | I8: 0 | J8: 0 | K8: 0 | L8: 0 | M8: 0 | N8: =CONCATENATE(IF(ISBLANK(sel_Field\Soil_pH),"",sel_Field\Soil_pH)) -> 4.6
A9: Crop\Variety | B9: Chinese (Span) | C9: 635 | G9: Field\Tillage | H9: 600 | I9: 300 | J9: 300 | K9: 0 | L9: 0 | M9: 0 | N9: =CONCATENATE(IF(ISBLANK(sel_Field\Tillage),"",sel_Field\Tillage)) -> Flat Beds (Conventional)
A10: Crop\Variety | B10: Konkoma (Span) | C10: 635 | G10: Harvest\Drying | H10: 100 | I10: 0 | J10: 100 | K10: 0 | L10: 0 | M10: 0 | N10: =CONCATENATE(IF(ISBLANK(sel_Harvest\Drying),"",sel_Harvest\Drying)) -> Tarpulin
A11: Crop\Variety | B11: Yenyawoso (Span-GRDR) | C11: 635 | G11: Pest_Management\Aphid_Spray | H11: 110 | I11: 0 | J11: 110 | K11: 0 | L11: 0 | M11: 0 | N11: =CONCATENATE(IF(ISBLANK(sel_Pest_Management\Aphid_Spray),"",sel_Pest_Management\Aphid_Spray)) -> Yes
A12: Field\Calciprill_Application | B12: No | C12: 0 | G12: Pest_Management\Bird_Protection | H12: 120 | I12: 0 | J12: 0 | K12: 0 | L12: 0 | M12: 0 | N12: =CONCATENATE(IF(ISBLANK(sel_Pest_Management\Bird_Protection),"",sel_Pest_Management\Bird_Protection)) -> No
A13: Field\Calciprill_Application | B13: Yes | C13: 625 | G13: Pest_Management\Fungicides | H13: 480 | I13: 0 | J13: 320 | K13: 0 | L13: 0 | M13: 0 | N13: =CONCATENATE(IF(ISBLANK(sel_Pest_Management\Fungicides),"",sel_Pest_Management\Fungicides)) -> 2 Sprays
A14: Field\Fertilizer | B14: None | C14: 0 | G14: Pest_Management\Rodent_Protection | H14: 500 | I14: 0 | J14: 500 | K14: 0 | L14: 0 | M14: 0 | N14: =CONCATENATE(IF(ISBLANK(sel_Pest_Management\Rodent_Protection),"",sel_Pest_Management\Rodent_Protection)) -> Yes
A15: Field\Fertilizer | B15: 50 kg/ha (Yara Legume) | C15: 310 | G15: Pest_Management\Weed_Control | H15: 1000 | I15: 500 | J15: 1000 | K15: 0 | L15: 0 | M15: 0 | N15: =CONCATENATE(IF(ISBLANK(sel_Pest_Management\Weed_Control),"",sel_Pest_Management\Weed_Control)) -> 2 hand weedings during season
A16: Field\Fertilizer | B16: 100 kg/ha (Yara Legume) | C16: 530 | G16: Storage\Method | H16: 300 | I16: 60 | J16: 60 | K16: 0 | L16: 0 | M16: 0 | N16: =CONCATENATE(IF(ISBLANK(sel_Storage\Method),"",sel_Storage\Method)) -> Traditional
A17: Field\Fertilizer | B17: 150 kg/ha (Yara Legume) | C17: 750 | G17: Storage\Temperature | H17: 0 | I17: 0 | J17: 0 | K17: 0 | L17: 0 | M17: 0 | N17: =CONCATENATE(IF(ISBLANK(sel_Storage\Temperature),"",sel_Storage\Temperature)) -> Lower than 28 °C
A18: Field\Soil_pH | B18: 4.4 or lower | C18: 0
A19: Field\Soil_pH | B19: 4.5 to 5.0 | C19: 0 | G19: Total | H19: =SUM(H$3:H17) -> 6310 | I19: =SUM(I$3:I17) -> 2177.5 | J19: =IF(ISERROR(SUM(J$3:J17)),0,SUM(J$3:J17)) -> 4115 | K19: =SUM(K$3:K17) -> 0 | L19: =SUM(L$3:L17) -> 0 | M19: =IF(ISERROR(SUM(M$3:M17)),0,SUM(M$3:M17)) -> 0
A20: Field\Soil_pH | B20: 5.1 to 5.5 | C20: 0
A21: Field\Soil_pH | B21: 5.6 to 6.9 | C21: 0 | H21: =CONCATENATE("Cost Thresholds (₵/",sel_Land_Area_Units,")") -> Cost Thresholds (₵/ha) | K21: =CONCATENATE("Person Hour Thresholds (hrs/",sel_Land_Area_Units,")") -> Person Hour Thresholds (hrs/ha)
A22: Field\Soil_pH | B22: 7.0 or higher | C22: 0 | G22: High | H22: =Cost_Min + 0.66667*(Cost_Max-Cost_Min) -> 4932.513775 | K22: =PersonHours_Min + 0.66667*(PersonHours_Max-PersonHours_Min) -> 0
A23: Field\Tillage | B23: Flat Beds (Conventional) | C23: 300 | G23: Moderate | H23: =Cost_Min + 0.33333*(Cost_Max-Cost_Min) -> 3554.986225 | K23: =PersonHours_Min + 0.33333*(PersonHours_Max-PersonHours_Min) -> 0
A24: Field\Tillage | B24: Plough and harrow (Improved) | C24: 600
A25: Harvest\Drying | B25: Cemented floor | C25: 20 | H25: =CONCATENATE("Cost Ranges (₵/",sel_Land_Area_Units,")") -> Cost Ranges (₵/ha) | K25: =CONCATENATE("Person Hour Ranges (hrs/",sel_Land_Area_Units,")") -> Person Hour Ranges (hrs/ha)
A26: Harvest\Drying | B26: Ground | C26: 0 | G26: Base | H26: =Cost_Base -> 1000 | K26: =PersonHours_Base -> 0
A27: Harvest\Drying | B27: Tarpulin | C27: 100 | G27: Low | H27: =Cost_Moderate-Cost_Base -> 2554.986225 | K27: =PersonHours_Moderate-PersonHours_Base -> 0
A28: Pest_Management\Aphid_Spray | B28: No | C28: 0 | G28: Moderate | H28: =Cost_High-Cost_Moderate -> 1377.52755 | K28: =PersonHours_High-PersonHours_Moderate -> 0
A29: Pest_Management\Aphid_Spray | B29: Yes | C29: 110 | G29: High | H29: =Cost_Max-Cost_High -> 1377.486225 | K29: =PersonHours_Max-PersonHours_High -> 0
A30: Pest_Management\Bird_Protection | B30: No | C30: 0
A31: Pest_Management\Bird_Protection | B31: Yes | C31: 120 | G31: =CONCATENATE("Estimated Cost (₵/",sel_Land_Area_Units,"): ",ROUNDUP(TRUNC(Cost,2),0)) -> Estimated Cost (₵/ha): 4115
A32: Pest_Management\Fungicides | B32: None | C32: 0
A33: Pest_Management\Fungicides | B33: 1 Spray | C33: 160
A34: Pest_Management\Fungicides | B34: 2 Sprays | C34: 320
A35: Pest_Management\Fungicides | B35: 3 Sprays | C35: 480
A36: Pest_Management\Rodent_Protection | B36: No | C36: 0
A37: Pest_Management\Rodent_Protection | B37: Yes | C37: 500
A38: Pest_Management\Weed_Control | B38: 1 hand weeding during season | C38: 500 | G38: =CONCATENATE("Estimated Person Hours (hrs/",sel_Land_Area_Units,"): ",ROUNDUP(TRUNC(PersonHours,2),0)) -> Estimated Person Hours (hrs/ha): 0
A39: Pest_Management\Weed_Control | B39: 2 hand weedings during season | C39: 1000
A40: Pest_Management\Weed_Control | B40: Pre herbicides followed by 1 hand weeding | C40: 500
A41: Pest_Management\Weed_Control | B41: Post herbicides followed by 1 hand weeding | C41: 500
A42: Storage\Method | B42: Sealed | C42: 300
A43: Storage\Method | B43: Traditional | C43: 60
A44: Storage\Temperature | B44: Lower than 28 °C | C44: 0
A45: Storage\Temperature | B45: 28 to 32 °C | C45: 0
A46: Storage\Temperature | B46: Higher than 32 °C | C46: 0

Sheet Logos (hidden)

Sheet Pest_Report (hidden)
A1: Groundnut - Aflatoxin Risk Summary
A6: Crop\Plants per 1m of Row | C6: Risk Points
B7: 5 plants (20 cm spacing) | C7: 80 | D7: 15
B8: 7 plants (15 cm spacing) | C8: 40
B9: 10 plants (10 cm spacing, optimum) | C9: 15
A10: Crop\Seed Inoculant | C10: Risk Points
B11: No | C11: 15 | D11: 5
B12: Yes* | C12: 5
A13: Field\Crop Rotation | C13: Risk Points
B14: Groundnut : Groundnut : Groundnut* | C14: 50 | D14: 50
B15: Maize : Groundnut : Groundnut | C15: 45
B16: Groundnut : Maize : Groundnut | C16: 40
B17: Maize : Groundnut : Maize | C17: 15
B18: Maize : Maize : Groundnut | C18: 5
A19: Field\Fertilizer | C19: Risk Points
B20: None* | C20: 40 | D20: 40
B21: 50 kg/ha (Yara Legume) | C21: 20
B22: 100 kg/ha (Yara Legume) | C22: 15
B23: 150 kg/ha (Yara Legume) | C23: 5
A24: Field\Gypsum at Bloom | C24: Risk Points
B25: No* | C25: 10 | D25: 10
B26: Yes | C26: 5
A27: Field\Soil Fertility | C27: Risk Points
B28: Low* | C28: 20 | D28: 20
B29: Moderate | C29: 0
B30: High | C30: -20
A31: Field\Soil pH | C31: Risk Points
B32: 4.4 or lower, 7.0 or higher | C32: 50 | D32: 30
B33: 4.5 to 5.0* | C33: 30
B34: 5.1 to 5.5 | C34: 20
B35: 5.6 to 6.9 | C35: 5
A36: Field\Tillage | C36: Risk Points
B37: Flat Beds (Conventional)* | C37: 20 | D37: 20
B38: Plough and harrow (Improved) | C38: 10
A39: Harvest\Digging Timimg | C39: Risk Points
B40: 15 Days Late | C40: 60 | D40: 10
B41: 15 Days Early | C41: 40
B42: 7 Days Early, 7 Days Late | C42: 15
B43: Optimum* | C43: 10
A44: Harvest\Drying | C44: Risk Points
B45: Ground | C45: 80 | D45: 15
B46: Cemented floor | C46: 20
B47: Tarpulin* | C47: 15
A48: Pest Management\Aphid Spray | C48: Risk Points
B49: No | C49: 10 | D49: 5
B50: Yes* | C50: 5
A51: Pest Management\Bird Protection | C51: Risk Points
B52: No* | C52: 25 | D52: 25
B53: Yes | C53: 5
A54: Pest Management\Fungicides | C54: Risk Points
B55: None | C55: 20 | D55: 10
B56: 1 Spray | C56: 15
B57: 2 Sprays* | C57: 10
B58: 3 Sprays | C58: 5
A59: Pest Management\Rodent Protection | C59: Risk Points
B60: No | C60: 20 | D60: 5
B61: Yes* | C61: 5
A62: Pest Management\Weed Control | C62: Risk Points
B63: 1 hand weeding during season | C63: 35 | D63: 15
B64: Post herbicides followed by 1 hand weeding | C64: 20
B65: 2 hand weedings during season* | C65: 15
B66: Pre herbicides followed by 1 hand weeding | C66: 10
A67: Storage\Groundnut Moisture | C67: Risk Points
B68: Greater than 15% | C68: 120 | D68: 5
B69: 10 to 15% | C69: 40
B70: Less than 10%* | C70: 5
A71: Storage\Method | C71: Risk Points
B72: Traditional* | C72: 160 | D72: 160
B73: Sealed | C73: 10
A74: Storage\Temperature | C74: Risk Points
B75: Higher than 32 °C | C75: 160 | D75: 20
B76: 28 to 32 °C | C76: 80
B77: Lower than 28 °C* | C77: 20
A79: * Selected options used in calculating pest risk. Note: Reduction in pest risk value by a control practice will be less under low risk conditions.

Sheet YLD (hidden)
A1: Yield Reduction
A2: Category | B2: Risk Level | C2: Risk Level Description | D2: Points | H2: Category | I2: Max | J2: Min | K2: Risk | L2: Selection
A3: Crop\Planting_Date | B3: 1 | C3: 258 to 365 | D3: 160 | H3: Crop\Planting_Date | I3: 160 | J3: 35 | K3: =getRiskValue("A:A",H3,J3,L3,"Date") -> 160 | L3: =IF(ISBLANK(sel_Crop\Planting_Date),"",sel_Crop\Planting_Date) -> 2021-09-30
A4: Crop\Planting_Date | B4: 2 | C4: 244 to 257 | D4: 80 | H4: Field\Soil_Fertility | I4: 100 | J4: 5 | K4: =getRiskValue("A:A",H4,J4,L4,"Single") -> 100 | L4: =IF(ISBLANK(sel_Field\Soil_Fertility),"",sel_Field\Soil_Fertility) -> Low
A5: Crop\Planting_Date | B5: 3 | C5: 001 to 243 | D5: 35 | H5: Field\Soil_pH | I5: 100 | J5: 5 | K5: =getRiskValue("A:A",H5,J5,L5,"pH") -> 50 | L5: =IF(ISBLANK(sel_Field\Soil_pH),"",sel_Field\Soil_pH) -> 4.6
A6: Crop\Plants_per_1m_of_Row | B6: 1 | C6: 5 plants (20 cm spacing) | D6: 80 | H6: Harvest\Digging_Timimg | I6: 100 | J6: 10 | K6: =getRiskValue("A:A",H6,J6,L6,"Single") -> 10 | L6: =IF(ISBLANK(sel_Harvest\Digging_Timimg),"",sel_Harvest\Digging_Timimg) -> Optimum
A7: Crop\Plants_per_1m_of_Row | B7: 2 | C7: 7 plants (15 cm spacing) | D7: 40 | H7: Pest_Management\Bird_Protection | I7: 100 | J7: 20 | K7: 100 | L7: =IF(ISBLANK(sel_Pest_Management\Bird_Protection),"",sel_Pest_Management\Bird_Protection) -> No
A8: Crop\Plants_per_1m_of_Row | B8: 3 | C8: 10 plants (10 cm spacing, optimum) | D8: 15 | H8: Pest_Management\Fungicides | I8: 100 | J8: -50 | K8: -25 | L8: =IF(ISBLANK(sel_Pest_Management\Fungicides),"",sel_Pest_Management\Fungicides) -> 2 Sprays
A9: Crop\Seed_Inoculant | B9: 1 | C9: No | D9: 10 | H9: Pest_Management\Weed_Control | I9: 100 | J9: 10 | K9: 20 | L9: =IF(ISBLANK(sel_Pest_Management\Weed_Control),"",sel_Pest_Management\Weed_Control) -> 2 hand weedings during season
A10: Crop\Seed_Inoculant | B10: 2 | C10: Yes | D10: 5 | H10: Crop\Plants_per_1m_of_Row | I10: 80 | J10: 15 | K10: 15 | L10: =IF(ISBLANK(sel_Crop\Plants_per_1m_of_Row),"",sel_Crop\Plants_per_1m_of_Row) -> 10 plants (10 cm spacing, optimum)
A11: Crop\Variety | B11: 1 | C11: Chinese (Span)|Konkoma (Span) | D11: 55 | H11: Field\Tillage | I11: 80 | J11: 20 | K11: 80 | L11: =IF(ISBLANK(sel_Field\Tillage),"",sel_Field\Tillage) -> Flat Beds (Conventional)
A12: Crop\Variety | B12: 2 | C12: Yenyawoso (Span-GRDR) | D12: 35 | H12: Pest_Management\Aphid_Spray | I12: 80 | J12: 10 | K12: 10 | L12: =IF(ISBLANK(sel_Pest_Management\Aphid_Spray),"",sel_Pest_Management\Aphid_Spray) -> Yes
A13: Field\Calciprill_Application | B13: 1 | C13: No | D13: 15 | H13: Crop\Variety | I13: 55 | J13: 35 | K13: 35 | L13: =IF(ISBLANK(sel_Crop\Variety),"",sel_Crop\Variety) -> Yenyawoso (Span-GRDR)
A14: Field\Calciprill_Application | B14: 2 | C14: Yes | D14: 5 | H14: Field\Crop_Rotation | I14: 50 | J14: 5 | K14: 50 | L14: =IF(ISBLANK(sel_Field\Crop_Rotation),"",sel_Field\Crop_Rotation) -> Groundnut : Groundnut : Groundnut
A15: Field\Crop_Rotation | B15: 1 | C15: Groundnut : Groundnut : Groundnut | D15: 50 | H15: Field\Fertilizer | I15: 50 | J15: -100 | K15: 50 | L15: =IF(ISBLANK(sel_Field\Fertilizer),"",sel_Field\Fertilizer) -> None
A16: Field\Crop_Rotation | B16: 2 | C16: Maize : Groundnut : Groundnut | D16: 45 | H16: Pest_Management\Rodent_Protection | I16: 40 | J16: 5 | K16: 5 | L16: =IF(ISBLANK(sel_Pest_Management\Rodent_Protection),"",sel_Pest_Management\Rodent_Protection) -> Yes
A17: Field\Crop_Rotation | B17: 3 | C17: Groundnut : Maize : Groundnut | D17: 40 | H17: Field\Calciprill_Application | I17: 15 | J17: 5 | K17: 15 | L17: =IF(ISBLANK(sel_Field\Calciprill_Application),"",sel_Field\Calciprill_Application) -> No
A18: Field\Crop_Rotation | B18: 4 | C18: Maize : Groundnut : Maize | D18: 15 | H18: Crop\Seed_Inoculant | I18: 10 | J18: 5 | K18: 5 | L18: =IF(ISBLANK(sel_Crop\Seed_Inoculant),"",sel_Crop\Seed_Inoculant) -> Yes
A19: Field\Crop_Rotation | B19: 5 | C19: Maize : Maize : Groundnut | D19: 5
A20: Field\Fertilizer | B20: 1 | C20: None | D20: 50 | H20: Total | I20: =SUMIF(I3:I18,">0") -> 1220 | J20: =SUMIF(J3:J18,">0") -> 185 | K20: =MAX(YLD_MinRiskIndex,SUM(K3:K18)) -> 680
A21: Field\Fertilizer | B21: 2 | C21: 50 kg/ha (Yara Legume) | D21: 0
A22: Field\Fertilizer | B22: 3 | C22: 100 kg/ha (Yara Legume) | D22: -50 | H22: High Risk Index | I22: 800
A23: Field\Fertilizer | B23: 4 | C23: 150 kg/ha (Yara Legume) | D23: -100 | H23: Moderate Risk Index | I23: 350
A24: Field\Soil_Fertility | B24: 1 | C24: Low | D24: 100
A25: Field\Soil_Fertility | B25: 2 | C25: Moderate | D25: 50
A26: Field\Soil_Fertility | B26: 3 | C26: High | D26: 5
A27: Field\Soil_pH | B27: 1 | C27: 4.4 or lower|7.0 or higher | D27: 100
A28: Field\Soil_pH | B28: 2 | C28: 4.5 to 5.0 | D28: 50
A29: Field\Soil_pH | B29: 3 | C29: 5.1 to 5.5 | D29: 25
A30: Field\Soil_pH | B30: 4 | C30: 5.6 to 6.9 | D30: 5
A31: Field\Tillage | B31: 1 | C31: Flat Beds (Conventional) | D31: 80
A32: Field\Tillage | B32: 2 | C32: Plough and harrow (Improved) | D32: 20
A33: Harvest\Digging_Timimg | B33: 1 | C33: 15 Days Late | D33: 100
A34: Harvest\Digging_Timimg | B34: 2 | C34: 15 Days Early | D34: 90
A35: Harvest\Digging_Timimg | B35: 3 | C35: 7 Days Early|7 Days Late | D35: 20
A36: Harvest\Digging_Timimg | B36: 4 | C36: Optimum | D36: 10
A37: Pest_Management\Aphid_Spray | B37: 1 | C37: No | D37: 80
A38: Pest_Management\Aphid_Spray | B38: 2 | C38: Yes | D38: 10
A39: Pest_Management\Bird_Protection | B39: 1 | C39: No | D39: 100
A40: Pest_Management\Bird_Protection | B40: 2 | C40: Yes | D40: 20
A41: Pest_Management\Fungicides | B41: 1 | C41: None | D41: 100
A42: Pest_Management\Fungicides | B42: 2 | C42: 1 Spray | D42: 5
A43: Pest_Management\Fungicides | B43: 3 | C43: 2 Sprays | D43: -25
A44: Pest_Management\Fungicides | B44: 4 | C44: 3 Sprays | D44: -50
A45: Pest_Management\Rodent_Protection | B45: 1 | C45: No | D45: 40
A46: Pest_Management\Rodent_Protection | B46: 2 | C46: Yes | D46: 5
A47: Pest_Management\Weed_Control | B47: 1 | C47: 1 hand weeding during season | D47: 100
A48: Pest_Management\Weed_Control | B48: 2 | C48: 2 hand weedings during season|Post herbicides followed by 1 hand weeding | D48: 20
A49: Pest_Management\Weed_Control | B49: 3 | C49: Pre herbicides followed by 1 hand weeding | D49: 10

Sheet AFLTXN (hidden)
A1: Aflatoxin
A2: Category | B2: Risk Level | C2: Risk Level Description | D2: Points | H2: Category | I2: Max | J2: Min | K2: Risk | L2: Selection
A3: Crop\Plants_per_1m_of_Row | B3: 1 | C3: 5 plants (20 cm spacing) | D3: 80 | H3: Storage\Method | I3: 160 | J3: 10 | K3: =getRiskValue("A:A",H3,J3,L3,"Single") -> 160 | L3: =IF(ISBLANK(sel_Storage\Method),"",sel_Storage\Method) -> Traditional
A4: Crop\Plants_per_1m_of_Row | B4: 2 | C4: 7 plants (15 cm spacing) | D4: 40 | H4: Storage\Temperature | I4: 160 | J4: 20 | K4: 20 | L4: =IF(ISBLANK(sel_Storage\Temperature),"",sel_Storage\Temperature) -> Lower than 28 °C
A5: Crop\Plants_per_1m_of_Row | B5: 3 | C5: 10 plants (10 cm spacing, optimum) | D5: 15 | H5: Storage\Groundnut_Moisture | I5: 120 | J5: 5 | K5: 5 | L5: =IF(ISBLANK(sel_Storage\Groundnut_Moisture),"",sel_Storage\Groundnut_Moisture) -> Less than 10%
A6: Crop\Seed_Inoculant | B6: 1 | C6: No | D6: 15 | H6: Crop\Plants_per_1m_of_Row | I6: 80 | J6: 15 | K6: 15 | L6: =IF(ISBLANK(sel_Crop\Plants_per_1m_of_Row),"",sel_Crop\Plants_per_1m_of_Row) -> 10 plants (10 cm spacing, optimum)
A7: Crop\Seed_Inoculant | B7: 2 | C7: Yes | D7: 5 | H7: Harvest\Drying | I7: 80 | J7: 15 | K7: 15 | L7: =IF(ISBLANK(sel_Harvest\Drying),"",sel_Harvest\Drying) -> Tarpulin
A8: Field\Calciprill_Application | B8: 1 | C8: No | D8: 10 | H8: Harvest\Digging_Timimg | I8: 60 | J8: 10 | K8: 10 | L8: =IF(ISBLANK(sel_Harvest\Digging_Timimg),"",sel_Harvest\Digging_Timimg) -> Optimum
A9: Field\Calciprill_Application | B9: 2 | C9: Yes | D9: 5 | H9: Field\Crop_Rotation | I9: 50 | J9: 5 | K9: 50 | L9: =IF(ISBLANK(sel_Field\Crop_Rotation),"",sel_Field\Crop_Rotation) -> Groundnut : Groundnut : Groundnut
A10: Field\Crop_Rotation | B10: 1 | C10: Groundnut : Groundnut : Groundnut | D10: 50 | H10: Field\Soil_pH | I10: 50 | J10: 5 | K10: =getRiskValue("A:A",H10,J10,L10,"pH") -> 30 | L10: =IF(ISBLANK(sel_Field\Soil_pH),"",sel_Field\Soil_pH) -> 4.6
A11: Field\Crop_Rotation | B11: 2 | C11: Maize : Groundnut : Groundnut | D11: 45 | H11: Field\Fertilizer | I11: 40 | J11: 5 | K11: =getRiskValue("A:A",H11,J11,L11,"Single") -> 40 | L11: =IF(ISBLANK(sel_Field\Fertilizer),"",sel_Field\Fertilizer) -> None
A12: Field\Crop_Rotation | B12: 3 | C12: Groundnut : Maize : Groundnut | D12: 40 | H12: Pest_Management\Weed_Control | I12: 35 | J12: 10 | K12: 15 | L12: =IF(ISBLANK(sel_Pest_Management\Weed_Control),"",sel_Pest_Management\Weed_Control) -> 2 hand weedings during season
A13: Field\Crop_Rotation | B13: 4 | C13: Maize : Groundnut : Maize | D13: 15 | H13: Pest_Management\Bird_Protection | I13: 25 | J13: 5 | K13: 25 | L13: =IF(ISBLANK(sel_Pest_Management\Bird_Protection),"",sel_Pest_Management\Bird_Protection) -> No
A14: Field\Crop_Rotation | B14: 5 | C14: Maize : Maize : Groundnut | D14: 5 | H14: Field\Soil_Fertility | I14: 20 | J14: -20 | K14: 20 | L14: =IF(ISBLANK(sel_Field\Soil_Fertility),"",sel_Field\Soil_Fertility) -> Low
A15: Field\Fertilizer | B15: 1 | C15: None | D15: 40 | H15: Field\Tillage | I15: 20 | J15: 10 | K15: 20 | L15: =IF(ISBLANK(sel_Field\Tillage),"",sel_Field\Tillage) -> Flat Beds (Conventional)
A16: Field\Fertilizer | B16: 2 | C16: 50 kg/ha (Yara Legume) | D16: 20 | H16: Pest_Management\Fungicides | I16: 20 | J16: 5 | K16: 10 | L16: =IF(ISBLANK(sel_Pest_Management\Fungicides),"",sel_Pest_Management\Fungicides) -> 2 Sprays
A17: Field\Fertilizer | B17: 3 | C17: 100 kg/ha (Yara Legume) | D17: 15 | H17: Pest_Management\Rodent_Protection | I17: 20 | J17: 5 | K17: 5 | L17: =IF(ISBLANK(sel_Pest_Management\Rodent_Protection),"",sel_Pest_Management\Rodent_Protection) -> Yes
A18: Field\Fertilizer | B18: 4 | C18: 150 kg/ha (Yara Legume) | D18: 5 | H18: Crop\Seed_Inoculant | I18: 15 | J18: 5 | K18: 5 | L18: =IF(ISBLANK(sel_Crop\Seed_Inoculant),"",sel_Crop\Seed_Inoculant) -> Yes
A19: Field\Soil_Fertility | B19: 1 | C19: Low | D19: 20 | H19: Field\Calciprill_Application | I19: 10 | J19: 5 | K19: 10 | L19: =IF(ISBLANK(sel_Field\Calciprill_Application),"",sel_Field\Calciprill_Application) -> No
A20: Field\Soil_Fertility | B20: 2 | C20: Moderate | D20: 0 | H20: Pest_Management\Aphid_Spray | I20: 10 | J20: 5 | K20: 5 | L20: =IF(ISBLANK(sel_Pest_Management\Aphid_Spray),"",sel_Pest_Management\Aphid_Spray) -> Yes
A21: Field\Soil_Fertility | B21: 3 | C21: High | D21: -20
A22: Field\Soil_pH | B22: 1 | C22: 4.4 or lower|7.0 or higher | D22: 50 | H22: Total | I22: =SUMIF(I3:I20,">0") -> 975 | J22: =SUMIF(J3:J20,">0") -> 140 | K22: =MAX(AFLTXN_MinRiskIndex,SUM(K3:K20)) -> 460
A23: Field\Soil_pH | B23: 2 | C23: 4.5 to 5.0 | D23: 30
A24: Field\Soil_pH | B24: 3 | C24: 5.1 to 5.5 | D24: 20 | H24: High Risk Index | I24: 700
A25: Field\Soil_pH | B25: 4 | C25: 5.6 to 6.9 | D25: 5 | H25: Moderate Risk Index | I25: 350
A26: Field\Tillage | B26: 1 | C26: Flat Beds (Conventional) | D26: 20
A27: Field\Tillage | B27: 2 | C27: Plough and harrow (Improved) | D27: 10
A28: Harvest\Digging_Timimg | B28: 1 | C28: 15 Days Late | D28: 60
A29: Harvest\Digging_Timimg | B29: 2 | C29: 15 Days Early | D29: 40
A30: Harvest\Digging_Timimg | B30: 3 | C30: 7 Days Early|7 Days Late | D30: 15
A31: Harvest\Digging_Timimg | B31: 4 | C31: Optimum | D31: 10
A32: Harvest\Drying | B32: 1 | C32: Ground | D32: 80
A33: Harvest\Drying | B33: 2 | C33: Cemented floor | D33: 20
A34: Harvest\Drying | B34: 3 | C34: Tarpulin | D34: 15
A35: Pest_Management\Aphid_Spray | B35: 1 | C35: No | D35: 10
A36: Pest_Management\Aphid_Spray | B36: 2 | C36: Yes | D36: 5
A37: Pest_Management\Bird_Protection | B37: 1 | C37: No | D37: 25
A38: Pest_Management\Bird_Protection | B38: 2 | C38: Yes | D38: 5
A39: Pest_Management\Fungicides | B39: 1 | C39: None | D39: 20
A40: Pest_Management\Fungicides | B40: 2 | C40: 1 Spray | D40: 15
A41: Pest_Management\Fungicides | B41: 3 | C41: 2 Sprays | D41: 10
A42: Pest_Management\Fungicides | B42: 4 | C42: 3 Sprays | D42: 5
A43: Pest_Management\Rodent_Protection | B43: 1 | C43: No | D43: 20
A44: Pest_Management\Rodent_Protection | B44: 2 | C44: Yes | D44: 5
A45: Pest_Management\Weed_Control | B45: 1 | C45: 1 hand weeding during season | D45: 35
A46: Pest_Management\Weed_Control | B46: 2 | C46: Post herbicides followed by 1 hand weeding | D46: 20
A47: Pest_Management\Weed_Control | B47: 3 | C47: 2 hand weedings during season | D47: 15
A48: Pest_Management\Weed_Control | B48: 4 | C48: Pre herbicides followed by 1 hand weeding | D48: 10
A49: Storage\Groundnut_Moisture | B49: 1 | C49: Greater than 15% | D49: 120
A50: Storage\Groundnut_Moisture | B50: 2 | C50: 10 to 15% | D50: 40
A51: Storage\Groundnut_Moisture | B51: 3 | C51: Less than 10% | D51: 5
A52: Storage\Method | B52: 1 | C52: Traditional | D52: 160
A53: Storage\Method | B53: 2 | C53: Sealed | D53: 10
A54: Storage\Temperature | B54: 1 | C54: Higher than 32 °C | D54: 160
A55: Storage\Temperature | B55: 2 | C55: 28 to 32 °C | D55: 80
A56: Storage\Temperature | B56: 3 | C56: Lower than 28 °C | D56: 20
